bitfinex-derivatives/quotes_ETHF0:USTF0_20250430
["timestamp","ask_amount","ask_price","bid_price","bid_amount"]
[1746003218888,11.0792894,1800.8,1800.7,43.6582]
[1746003219489,5.5629,1800.8,1800.7,43.6582]
[1746003219689,5.5629,1800.8,1800.7,44.483]
[1746003220894,5.5629,1800.8,1800.7,43.6582]
[1746003221093,6.67323,1800.8,1800.7,43.6582]
[1746003221293,5.5629,1800.8,1800.7,43.6582]
[1746003221494,6.67323,1800.8,1800.7,43.6582]
[1746003222601,6.67323,1800.8,1800.7,41.9104]
[1746003229799,6.67323,1800.8,1800.7,40.8]
[1746003230114,1.11054,1800.6,1800.5,1.11049]
[1746003230297,4.31834,1800.6,1800.5,1.11049]
[1746003230496,6.80524,1800.6,1800.5,1.11049]
[1746003230692,1.11063,1800.4,1800.3,1.11058]
[1746003230898,4.31843,1800.4,1800.3,41.91058]
[1746003231196,8.14643,1800.4,1800.3,41.91058]
[1746003231392,8.95033,1800.4,1800.3,41.91058]
[1746003232000,9.37801943,1800.4,1800.3,41.91058]
[1746003232808,8.26738943,1800.4,1800.3,41.91058]
[1746003233608,9.94128943,1800.4,1800.3,41.91058]
[1746003233801,11.05186943,1800.4,1800.3,41.91058]
[1746003235507,11.05154737,1800.4,1800.3,41.91058]
[1746003235802,3.828,1800.4,1800.3,45.11838]
[1746003236107,5.5163894,1800.5,1800.4,1.11058]
[1746003236405,5.5163894,1800.5,1800.4,2.85838]
[1746003236605,7.1333894,1800.5,1800.4,2.85838]
[1746003237107,10.9613894,1800.5,1800.4,2.85838]
[1746003238108,12.4992315,1800.5,1800.4,1.11058]
[1746003238300,11.3887115,1800.5,1800.4,1.11058]
[1746003238500,5.8723221,1800.5,1800.4,1.11058]
[1746003241009,5.87228392,1800.5,1800.4,1.11058]
[1746003244311,5.87222418,1800.5,1800.4,1.11058]
[1746003245508,5.87222418,1800.5,1800.4,2.77378]
[1746003245706,5.445,1800.5,1800.4,2.77378]
[1746003246509,5.445,1800.5,1800.4,4.37938]
[1746003248311,3.828,1800.5,1800.4,4.37938]
[1746003253315,4.25552189,1800.5,1800.4,4.37938]
[1746003253913,3.828,1800.5,1800.4,4.37938]
[1746003254716,4.25556328,1800.5,1800.4,4.37938]
[1746003254908,3.828,1800.5,1800.4,4.37938]
[1746003255108,4.25559314,1800.5,1800.4,4.37938]
[1746003255310,3.828,1800.5,1800.4,4.37938]
[1746003255510,5.5245,1800.5,1800.4,4.37938]
[1746003257415,5.9521621,1800.5,1800.4,4.37938]
[1746003257912,5.95219457,1800.5,1800.4,4.37938]
[1746003258416,5.95223486,1800.5,1800.4,4.37938]
[1746003259219,5.95224297,1800.5,1800.4,1.11058]
[1746003259419,6.77374297,1800.5,1800.4,1.11058]
[1746003259714,6.77383237,1800.5,1800.4,1.11058]
[1746003260016,7.88435237,1800.5,1800.4,1.11058]
[1746003261419,1.11058,1800.4,1800.3,40.8]
[1746003261614,10.08131237,1800.4,1800.3,40.8]
[1746003261809,15.08131237,1800.4,1800.3,40.8]
[1746003262221,18.90931237,1800.4,1800.3,41.91064]
[1746003262618,13.90931237,1800.4,1800.3,41.91064]
[1746003263213,13.90931237,1800.4,1799.9,7.34136012]
[1746003263214,17.79873237,1800.4,1799.9,7.34136012]
[1746003263415,17.79873237,1800.4,1799.5,36.3525818]
[1746003263416,2.77727,1799.9,1799.5,35.6791221]
[1746003263619,2.77727,1799.9,1799.5,34.4560721]
[1746003263620,4.31888,1799.6,1799.5,34.4560721]
[1746003263816,4.74671237,1799.6,1799.5,29.3010307]
[1746003264117,9.01535686,1799.6,1799.5,20.88414215]
[1746003264321,12.18671237,1799.6,1799.5,20.88414215]
[1746003264718,12.66352224,1799.6,1799.5,20.88414215]
[1746003266626,15.14162224,1799.6,1799.5,20.88414215]
[1746003267222,15.13906735,1799.6,1799.5,20.88414215]
[1746003267418,14.71378987,1799.6,1799.5,20.88414215]
[1746003267624,15.13902778,1799.6,1799.5,20.88414215]
[1746003268331,1.11126,1799.3,1799.2,1.7509]
[1746003268632,4.31906,1799.3,1799.2,11.7509]
[1746003268932,4.31906,1799.3,1799.2,52.5509]
[1746003269131,8.62386987,1799.3,1799.2,52.5509]
[1746003273033,8.62386987,1799.3,1799.2,53.66222]
[1746003273232,8.62386987,1799.3,1799.2,52.5509]
[1746003273431,8.62386987,1799.3,1799.2,53.66222]
[1746003273933,8.62386987,1799.3,1799.2,52.5509]
[1746003274231,8.62386987,1799.3,1799.2,53.66222]
[1746003274632,8.62386987,1799.3,1799.2,52.5509]
[1746003275430,11.16660987,1799.3,1798.9,3.2078]
[1746003275636,1.11151,1798.9,1798.8,7.01357]
[1746003275836,1.11151,1798.9,1798.8,11.11157]
[1746003276426,1.58831987,1798.9,1798.8,11.11157]
[1746003276937,1.58831987,1798.9,1798.8,51.91157]
[1746003277234,5.41631987,1798.9,1798.8,51.91157]
[1746003277736,5.41631987,1798.9,1798.8,50.8]
[1746003278036,5.41631987,1798.9,1798.8,51.91157]
[1746003278334,5.41631987,1798.9,1798.6,3.2078]
[1746003278335,4.30480987,1798.9,1798.6,3.2078]
[1746003278633,4.30480987,1798.9,1798.2,0.53203789]
[1746003278634,1.11188,1798.3,1798.2,0.43527998]
[1746003278838,1.11188,1798.3,1798.2,41.23527998]
[1746003278839,4.31968,1798.3,1798.2,41.23527998]
[1746003279137,9.06321662,1798.3,1798.2,40.8]
[1746003279336,11.60901662,1798.3,1798.2,40.8]
[1746003279838,11.17028987,1798.3,1798.2,40.8]
[1746003281233,10.34998987,1798.3,1798.2,40.8]
[1746003281436,10.34998987,1798.3,1798.2,51.91194]
[1746003281437,7.51260987,1798.3,1798.2,51.91194]
[1746003281633,7.51260987,1798.3,1798.2,54.46094]
[1746003282136,2.77986,1798.2,1797.5,5.902]
[1746003282336,1.11219,1797.8,1797.7,1.7277]
[1746003282641,1.58899987,1797.8,1797.7,42.5277]
[1746003283239,7.04839987,1797.8,1797.7,42.5277]
[1746003283839,5.41699987,1797.8,1797.7,53.63995]
[1746003286036,4.30480987,1797.8,1797.7,53.63995]
[1746003287144,0.47680987,1797.8,1797.7,53.63995]
[1746003287341,4.31995,1797.9,1797.7,53.63995]
[1746003287842,4.31995,1797.9,1797.7,53.63991]
[1746003288142,8.14795,1797.9,1797.7,52.5277]
[1746003288341,8.14795,1797.9,1797.7,53.63989]
[1746003288842,8.14795,1797.9,1797.8,1.11219]
[1746003289042,8.14795,1797.9,1797.8,11.11219]
[1746003289446,8.14795,1797.9,1797.8,51.91219]
[1746003289645,7.0358,1797.9,1797.8,51.91219]
[1746003289844,7.50871845,1797.9,1797.8,52.74959]
[1746003290338,3.2078,1798.1,1798.0,1.11206]
[1746003290737,3.2078,1798.1,1798.0,11.11206]
[1746003290937,3.68100521,1798.1,1798.0,51.91206]
[1746003292047,4.79300521,1798.1,1798.0,51.91206]
[1746003292847,4.79300521,1798.1,1798.0,53.57096]
[1746003293147,8.62100521,1798.1,1798.0,53.57096]
[1746003294746,7.50900521,1798.1,1798.0,53.57096]
[1746003297949,7.50900521,1798.1,1798.0,54.43176]
[1746003300151,3.68100521,1798.1,1798.0,54.43176]
[1746003301058,0.47320521,1798.1,1798.0,54.43176]
[1746003301250,0.47320521,1798.1,1798.0,59.43176]
[1746003301561,0.47320521,1798.1,1798.0,65.33376]
[1746003302054,0.47320521,1798.1,1798.0,69.16176]
[1746003303156,0.47320521,1798.1,1798.0,65.33376]
[1746003303856,0.47320521,1798.1,1798.0,60.33376]
[1746003309150,0.47320521,1798.1,1797.8,5.15739]
[1746003309151,12.7644698,1798.1,1797.5,0.09679909]
[1746003309356,12.7644698,1798.1,1796.7,30.23103206]
[1746003309357,2.78094,1797.5,1796.7,30.23103206]
[1746003309555,3.2078,1796.8,1796.7,30.23103206]
[1746003309753,3.63526459,1796.8,1796.7,41.34390206]
[1746003310056,3.68100521,1796.8,1796.7,31.34390206]
[1746003310660,3.68100521,1796.8,1796.7,16.7646254]
[1746003311257,3.68100521,1796.8,1796.7,57.5646254]
[1746003311661,3.68100521,1796.8,1796.7,67.5646254]
[1746003312354,3.68100521,1796.8,1796.7,56.4517554]
[1746003312658,4.79381521,1796.8,1796.7,56.4517554]
[1746003312867,5.22026737,1796.8,1796.7,56.4517554]
[1746003313052,9.04826737,1796.8,1796.7,56.4517554]
[1746003313252,8.62181521,1796.8,1796.7,56.4517554]
[1746003313759,7.50900521,1796.8,1796.7,56.4517554]
[1746003314163,9.15890521,1796.8,1796.7,56.4517554]
[1746003314462,10.27171521,1796.8,1796.7,56.4517554]
[1746003314663,9.15890521,1796.8,1796.7,40.8]
[1746003314854,10.27171521,1796.8,1796.7,40.8]
[1746003315055,9.15890521,1796.8,1796.7,40.8]
[1746003317666,9.15890521,1796.8,1796.7,41.91287]
[1746003317858,7.50900521,1796.8,1796.7,41.91287]
[1746003318462,7.50900521,1796.8,1796.7,51.91287]
[1746003318662,7.50900521,1796.8,1796.7,57.81487]
[1746003319166,3.68100521,1796.8,1796.7,57.81487]
[1746003320866,3.68100521,1796.8,1796.3,5.902]
[1746003320867,9.10567614,1796.8,1796.3,5.902]
[1746003321061,3.2078,1796.4,1796.3,1.11312]
[1746003321260,3.68100521,1796.4,1796.3,1.11312]
[1746003322569,8.68100521,1796.4,1795.7,0.09689666]
[1746003322871,3.2078,1795.8,1795.5,1.1136]
[1746003323170,3.2078,1795.6,1795.5,40.8]
[1746003323561,4.8795,1795.6,1795.5,41.91361]
[1746003323763,4.8795,1795.6,1795.5,40.8]
[1746003324069,5.35270521,1795.6,1795.5,40.8]
[1746003324568,5.35270521,1795.6,1795.5,1.11361]
[1746003324769,5.35270521,1795.6,1795.4,1.11364]
[1746003324972,5.35270521,1795.6,1795.4,7.01564]
[1746003325168,0.47320521,1795.5,1795.4,51.64364]
[1746003325469,4.8795,1795.6,1795.5,7.01561]
[1746003325670,4.8795,1795.6,1795.5,8.74351]
[1746003326064,4.8795,1795.6,1795.5,12.57151]
[1746003326369,3.2078,1795.6,1795.5,25.35479]
[1746003327570,3.2078,1795.8,1795.5,24.24118]
[1746003327867,3.2078,1795.8,1795.7,7.01549]
[1746003328065,3.2078,1795.8,1795.7,1.11349]
[1746003328257,3.2078,1795.8,1795.7,4.94149]
[1746003328461,3.2078,1795.8,1795.7,23.62677]
[1746003329772,3.2078,1795.8,1795.7,25.23487]
[1746003330870,3.19786993,1795.8,1795.7,25.23487]
[1746003331865,3.2078,1796.0,1795.8,3.89689]
[1746003332064,3.2078,1796.0,1795.9,2.72146]
[1746003332266,3.2078,1796.0,1795.9,21.40674]
[1746003333271,3.2078,1796.0,1795.9,25.23474]
[1746003336370,3.68186227,1796.0,1795.9,25.23474]
[1746003337166,3.2078,1796.0,1795.9,25.23474]
[1746003338177,3.68269383,1796.0,1795.9,25.23474]
[1746003339975,1.11289,1796.7,1796.6,1.1129]
[1746003340179,10.19393333,1796.7,1796.6,1.11293]
[1746003342379,9.08101333,1796.7,1796.6,1.11293]
[1746003344681,9.0812672,1796.7,1796.6,1.11293]
[1746003345972,8.6548,1796.7,1796.6,1.11293]
[1746003346276,9.08131461,1796.7,1796.6,1.11293]
[1746003347479,3.828,1796.7,1796.6,7.01493]
[1746003348077,4.8735,1796.9,1796.8,1.11281]
[1746003348273,5.30007683,1796.9,1796.8,1.11281]
[1746003348582,5.30009953,1796.9,1796.8,7.01481]
[1746003349180,9.12809953,1796.9,1796.8,7.01481]
[1746003349479,10.24083953,1796.9,1796.8,7.01481]
[1746003350087,10.24083953,1796.9,1796.8,1.11281]
[1746003350379,9.81424,1796.9,1796.8,1.11281]
[1746003350582,10.24100825,1796.9,1796.8,1.11281]
[1746003351683,10.24090711,1796.9,1796.8,1.11281]
[1746003352281,9.81424,1796.9,1796.8,1.11281]
[1746003352487,1.11287,1796.7,1796.6,1.11288]
[1746003352784,5.21929509,1796.7,1796.6,1.11288]
[1746003353189,9.04729509,1796.7,1796.6,1.11288]
[1746003353886,1.11305,1796.5,1796.4,1.11297]
[1746003354081,4.32085,1796.5,1796.4,1.11297]
[1746003354588,4.79284016,1796.5,1796.4,1.11297]
[1746003354784,3.67979016,1796.5,1796.4,19.79825]
[1746003354978,0.47199016,1796.5,1796.4,8.74967]
[1746003355383,0.47199016,1796.5,1796.4,21.53295]
[1746003355888,0.47199016,1796.5,1796.4,8.74967]
[1746003358293,0.47199016,1796.5,1796.4,12.57767]
[1746003358892,0.47199016,1796.5,1796.4,25.36095]
[1746003359288,0.47199016,1796.5,1796.4,21.53295]
[1746003359586,0.47199016,1796.5,1796.4,8.74967]
[1746003359889,0.47199016,1796.5,1796.4,21.53295]
[1746003360684,2.60916798,1796.5,1796.4,21.53295]
[1746003361285,5.81696798,1796.5,1796.4,8.74967]
[1746003361592,5.81696798,1796.5,1796.4,2.84767]
[1746003361792,5.81696798,1796.5,1796.4,8.74967]
[1746003362984,5.38919016,1796.5,1796.4,8.74967]
[1746003363181,5.81706354,1796.5,1796.4,8.74967]
[1746003364991,4.10777351,1796.5,1796.4,21.53295]
[1746003365291,0.89997351,1796.5,1796.4,8.74967]
[1746003365491,0.89997351,1796.5,1796.4,21.53295]
[1746003365989,0.89997351,1796.5,1796.4,8.74967]
[1746003366191,0.89997351,1796.5,1796.4,21.53295]
[1746003366993,0.47199016,1796.5,1796.4,21.53295]
[1746003367693,0.90029353,1796.5,1796.4,21.53295]
[1746003368689,0.90029353,1796.5,1796.4,8.74967]
[1746003368897,0.90043986,1796.5,1796.4,8.74967]
[1746003369494,0.90062135,1796.5,1796.4,8.74967]
[1746003369686,0.47199016,1796.5,1796.4,8.74967]
[1746003369887,0.90062065,1796.5,1796.4,8.74967]
[1746003370090,0.90062065,1796.5,1796.4,12.57767]
[1746003370388,0.90062065,1796.5,1796.4,25.36095]
[1746003370795,0.90059216,1796.5,1796.4,12.57767]
[1746003371484,0.90061459,1796.5,1796.4,12.57767]
[1746003371996,0.47199016,1796.5,1796.4,12.57767]
[1746003372188,0.90059799,1796.5,1796.4,12.57767]
[1746003372596,0.9006522,1796.5,1796.4,12.57767]
[1746003373097,0.90065042,1796.5,1796.4,12.57767]
[1746003373297,0.47199016,1796.5,1796.4,12.57767]
[1746003373898,3.2078,1796.7,1796.6,1.11293]
[1746003374095,3.2078,1796.7,1796.6,7.01493]
[1746003374296,3.2078,1796.7,1796.6,9.43563]
[1746003375299,4.10988526,1796.7,1796.6,9.43563]
[1746003376498,4.10989875,1796.7,1796.6,9.43563]
[1746003377698,4.10989875,1796.7,1796.6,22.21891]
[1746003378494,4.10989257,1796.7,1796.6,22.21891]
[1746003379603,4.10989257,1796.7,1796.6,9.43563]
[1746003380399,4.10992558,1796.7,1796.6,9.43563]
[1746003381191,5.72862558,1796.7,1796.6,22.21891]
[1746003382095,5.72862558,1796.7,1796.6,9.43563]
[1746003382296,5.72865669,1796.7,1796.6,9.43563]
[1746003382501,1.11294,1796.6,1796.5,1.11293]
[1746003382700,2.04739582,1796.6,1796.5,1.11293]
[1746003382902,0.90215669,1796.6,1796.5,1.11293]
[1746003383106,0.90215669,1796.6,1796.5,2.81423]
[1746003384303,0.90220941,1796.6,1796.5,2.81423]
[1746003384603,0.90224671,1796.6,1796.5,8.71623]
[1746003385006,0.47346087,1796.6,1796.5,8.71623]
[1746003385403,4.8265,1796.7,1796.6,1.11293]
[1746003385706,5.72882279,1796.7,1796.6,2.85283]
[1746003386006,9.42683736,1796.7,1796.6,8.75483]
[1746003388610,9.42683736,1796.7,1796.6,21.53811]
[1746003389809,9.42683736,1796.7,1796.6,8.75483]
[1746003390001,9.42683736,1796.7,1796.6,21.53811]
[1746003390798,7.3794061,1796.7,1796.6,21.53811]
[1746003391003,3.69801457,1796.7,1796.6,21.53811]
[1746003391714,4.59990236,1796.7,1796.6,21.53811]
[1746003393320,4.59990236,1796.7,1796.6,8.75483]
[1746003393520,6.32240236,1796.7,1796.6,8.75483]
[1746003393716,5.89387731,1796.7,1796.6,21.53811]
[1746003393920,5.89387731,1796.7,1796.6,8.75483]
[1746003393921,2.62450595,1796.7,1796.6,8.75483]
[1746003395122,2.62450595,1796.7,1796.6,21.53811]
[1746003395324,2.62450595,1796.7,1796.6,19.79821]
[1746003395621,6.94517595,1796.7,1796.6,1.11293]
[1746003396320,10.77317595,1796.7,1796.6,1.11293]
[1746003396722,10.34453274,1796.7,1796.6,1.11293]
[1746003396923,15.86092214,1796.7,1796.6,1.11293]
[1746003397125,15.3875594,1796.7,1796.6,1.11293]
[1746003397425,16.27191045,1796.7,1796.6,1.11293]
[1746003397620,1.11299,1796.6,1796.5,1.11295]
[1746003397831,4.50751572,1796.6,1796.5,1.11295]
[1746003398023,4.96314105,1796.6,1796.5,1.11295]
[1746003398328,8.79114105,1796.6,1796.5,1.11295]
[1746003399126,4.96314105,1796.6,1796.5,1.11295]
[1746003399519,4.96304648,1796.6,1796.5,1.11295]
[1746003399719,3.85005648,1796.6,1796.5,1.11295]
[1746003399919,4.96298648,1796.6,1796.5,1.11295]
[1746003401431,4.96277622,1796.6,1796.5,1.11295]
[1746003401928,4.54377622,1796.6,1796.5,1.11295]
[1746003402527,4.11535533,1796.6,1796.5,1.11295]
[1746003402727,3.65973,1796.6,1796.5,1.11295]
[1746003403329,4.1149206,1796.6,1796.5,1.11295]
[1746003403531,10.11602415,1796.6,1796.5,1.11295]
[1746003404230,9.00309415,1796.6,1796.5,1.11295]
[1746003404432,10.11602415,1796.6,1796.5,1.11295]
[1746003405733,10.11592649,1796.6,1796.5,1.11295]
[1746003406632,9.24742649,1796.6,1796.5,1.11295]
[1746003408031,8.81926569,1796.6,1796.5,1.11295]
[1746003408235,8.36407509,1796.6,1796.5,2.83395]
[1746003408733,9.24708449,1796.6,1796.5,2.83395]
[1746003410433,6.45585449,1796.6,1796.5,21.51923]
[1746003411137,6.45062754,1796.6,1796.5,25.34723]
[1746003411434,6.45062754,1796.6,1796.5,12.56395]
[1746003412835,6.02778104,1796.6,1796.5,12.56395]
[1746003413534,0.45493595,1796.6,1796.5,12.56395]
[1746003414027,1.11281,1796.8,1796.5,15.34628]
[1746003414231,1.11281,1796.8,1796.7,7.01483]
[1746003414434,0.87262199,1796.8,1796.7,7.01483]
[1746003414731,0.87262199,1796.8,1796.7,7.82093]
[1746003414935,0.87257353,1796.8,1796.7,7.82093]
[1746003417234,2.50467353,1796.8,1796.7,7.82093]
[1746003418838,2.50467353,1796.8,1796.7,1.91893]
[1746003419739,2.50467353,1796.8,1796.7,7.82093]
[1746003419936,0.87257353,1796.8,1796.7,7.82093]
[1746003420141,4.58666854,1796.8,1796.7,7.82093]
[1746003423538,0.87257353,1796.8,1796.7,7.82093]
[1746003423740,0.87210237,1796.8,1796.7,7.82093]
[1746003424943,0.44977524,1796.8,1796.7,7.82093]
[1746003425144,3.2078,1796.9,1796.8,1.11281]
[1746003425334,3.2078,1796.9,1796.8,2.82031]
[1746003425535,4.0793153,1796.9,1796.8,2.82031]
[1746003426037,5.1920553,1796.9,1796.8,2.82031]
[1746003426244,6.9076553,1796.9,1796.8,1.11281]
[1746003427140,1.11281,1796.8,1796.7,3.57711]
[1746003427341,3.29041755,1796.8,1796.7,1.91891]
[1746003427539,3.29036922,1796.8,1796.7,1.91891]
[1746003427839,3.73957697,1796.8,1796.7,1.91891]
[1746003428145,7.56757697,1796.8,1796.7,1.91891]
[1746003429745,7.14531775,1796.8,1796.7,1.91891]
[1746003429944,6.69611,1796.8,1796.7,1.91891]
[1746003430444,7.56757735,1796.8,1796.7,1.91891]
[1746003430645,7.56757735,1796.8,1796.7,0.8061]
[1746003431346,7.56763915,1796.8,1796.7,0.8061]
[1746003432346,7.56769226,1796.8,1796.7,0.8061]
[1746003433647,13.13238061,1796.8,1796.7,0.8061]
[1746003434449,16.34018061,1796.8,1796.7,0.8061]
[1746003434849,16.34018061,1796.8,1796.7,1.91897]
[1746003435351,16.34018061,1796.8,1796.7,0.8061]
[1746003439150,16.34039118,1796.8,1796.7,0.8061]
[1746003441452,16.34039118,1796.8,1796.7,1.91897]
[1746003443057,16.34039118,1796.8,1796.7,0.8061]
[1746003444558,16.34039118,1796.8,1796.7,1.91897]
[1746003444746,16.34039118,1796.8,1796.7,0.8061]
[1746003445447,16.34039118,1796.8,1796.7,2.4048]
[1746003445654,16.34039118,1796.8,1796.7,3.51767]
[1746003446162,14.58509118,1796.8,1796.7,9.41967]
[1746003446659,14.58504038,1796.8,1796.7,9.41967]
[1746003447970,14.1624841,1796.8,1796.7,9.41967]
[1746003448172,13.71329835,1796.8,1796.7,9.41967]
[1746003448971,14.58532079,1796.8,1796.7,9.41967]
[1746003449171,11.37750862,1796.8,1796.7,9.41967]
[1746003449572,14.58530862,1796.8,1796.7,8.3068]
[1746003450467,14.16276777,1796.8,1796.7,8.3068]
[1746003450675,14.58522623,1796.8,1796.7,9.41967]
[1746003452473,14.58517045,1796.8,1796.7,9.41967]
[1746003452668,16.29127045,1796.8,1796.7,9.41967]
[1746003453064,15.86886777,1796.8,1796.7,9.41967]
[1746003453376,15.41939835,1796.8,1796.7,9.41967]
[1746003453974,16.29138579,1796.8,1796.7,9.41967]
[1746003454175,15.86884718,1796.8,1796.7,9.41967]
[1746003454474,15.41939835,1796.8,1796.7,9.41967]
[1746003454977,16.29161316,1796.8,1796.7,9.41967]
[1746003455275,10.72692481,1796.8,1796.7,9.41967]
[1746003455477,9.02082481,1796.8,1796.7,9.41967]
[1746003456177,9.02102296,1796.8,1796.7,9.41967]
[1746003458382,9.0213695,1796.8,1796.7,22.20295]
[1746003460579,10.7758695,1796.8,1796.7,22.20295]
[1746003461075,10.7758695,1796.8,1796.7,21.09008]
[1746003461479,10.7758695,1796.8,1796.7,22.20295]
[1746003462082,10.7758146,1796.8,1796.7,22.20295]
[1746003462783,16.34328872,1796.8,1796.7,22.20295]
[1746003463885,15.92015044,1796.8,1796.7,22.20295]
[1746003464185,16.34326928,1796.8,1796.7,22.20295]
[1746003465184,14.58876928,1796.8,1796.7,22.20295]
[1746003465483,14.58876928,1796.8,1796.7,23.00455]
[1746003465889,14.5888079,1796.8,1796.7,23.00455]
[1746003466092,14.16565044,1796.8,1796.7,23.00455]
[1746003466491,14.58880061,1796.8,1796.7,23.00455]
[1746003466687,14.16565044,1796.8,1796.7,23.00455]
[1746003467083,9.22484044,1796.8,1796.7,23.00455]
[1746003467392,9.64798909,1796.8,1796.7,23.00455]
[1746003467687,11.50009944,1796.8,1796.7,23.00455]
[1746003467890,12.18976079,1796.8,1796.7,23.00455]
[1746003468292,12.61290267,1796.8,1796.7,23.00455]
[1746003468491,12.18976079,1796.8,1796.7,23.00455]
[1746003468793,12.61292855,1796.8,1796.7,23.00455]
[1746003469292,12.61286361,1796.8,1796.7,23.00455]
[1746003469594,12.61287163,1796.8,1796.7,23.00455]
[1746003470895,5.19328716,1796.8,1796.7,23.00455]
[1746003471087,5.19315009,1796.8,1796.7,23.00455]
[1746003472994,5.19312791,1796.8,1796.7,23.00455]
[1746003474897,5.1931019,1796.8,1796.7,23.00455]
[1746003475293,5.1931019,1796.8,1796.7,10.22127]
[1746003475496,5.1931019,1796.8,1796.7,23.00455]
[1746003476103,10.76459964,1796.8,1796.7,23.00455]
[1746003476801,10.76465499,1796.8,1796.7,23.00455]
[1746003477099,12.42205499,1796.8,1796.7,23.00455]
[1746003478098,16.25005499,1796.8,1796.7,23.00455]
[1746003479599,16.25005499,1796.8,1796.7,2.4048]
[1746003479792,16.25005499,1796.8,1796.7,0.8061]
[1746003481700,19.85305499,1796.8,1796.7,0.8061]
[1746003481998,19.85306075,1796.8,1796.7,0.8061]
[1746003483302,23.56739257,1796.8,1796.7,0.8061]
[1746003487706,23.56722524,1796.8,1796.7,0.8061]
[1746003488506,23.56722524,1796.8,1796.7,2.4041]
[1746003488806,21.90982524,1796.8,1796.7,3.51697]
[1746003488999,21.90982524,1796.8,1796.7,9.41897]
[1746003490105,21.90982524,1796.8,1796.7,2.4041]
[1746003490305,21.90982524,1796.8,1796.7,3.51697]
[1746003490499,23.64472524,1796.8,1796.7,3.51697]
[1746003490699,21.7861027,1796.8,1796.7,2.4041]
[1746003491506,21.78601182,1796.8,1796.7,2.4041]
[1746003493308,21.36328334,1796.8,1796.7,2.4041]
[1746003493508,21.78600942,1796.8,1796.7,2.4041]
[1746003493811,21.78600942,1796.8,1796.7,8.3061]
[1746003495201,21.78600942,1796.8,1796.7,0.8061]
[1746003495507,21.78600049,1796.8,1796.7,0.8061]
[1746003496004,1.11287,1796.7,1796.6,1.6464]
[1746003496209,1.11287,1796.7,1796.6,20.33168]
[1746003496210,6.99708715,1796.7,1796.6,20.33168]
[1746003496810,5.81315347,1796.7,1796.6,20.33168]
[1746003497612,13.24036049,1796.7,1796.6,21.44461]
[1746003497909,13.24036049,1796.7,1796.6,20.33168]
[1746003499410,13.24036049,1796.7,1796.6,21.44461]
[1746003500210,13.24036049,1796.7,1796.6,8.66133]
[1746003500610,5.81315347,1796.7,1796.6,8.66133]
[1746003501111,1.98513446,1796.7,1796.6,8.66133]
[1746003501610,1.98513446,1796.7,1796.6,21.44461]
[1746003502111,5.19293446,1796.7,1796.6,21.44461]
[1746003503514,5.19303711,1796.7,1796.6,8.66133]
[1746003503714,5.19303711,1796.7,1796.6,21.44461]
[1746003504313,10.75895175,1796.7,1796.6,21.44461]
[1746003508720,10.75913281,1796.7,1796.6,21.44461]
[1746003511123,14.58713281,1796.7,1796.6,8.66133]
[1746003512129,14.58713281,1796.7,1796.6,7.5484]
[1746003512531,14.5870098,1796.7,1796.6,7.5484]
[1746003513827,14.5870098,1796.7,1796.6,8.66133]
[1746003514033,14.5870098,1796.7,1796.6,1.6464]
[1746003514232,16.1695098,1796.7,1796.6,1.6464]
[1746003514536,16.16953927,1796.7,1796.6,2.75933]
[1746003514831,16.16953927,1796.7,1796.6,1.6464]
[1746003515431,16.16953927,1796.7,1796.6,2.75933]
[1746003518133,12.34153927,1796.7,1796.6,2.75933]
[1746003518333,12.34152007,1796.7,1796.6,2.75933]
[1746003518839,11.91865096,1796.7,1796.6,2.75933]
[1746003519034,11.46908464,1796.7,1796.6,2.75933]
[1746003519233,17.15837702,1796.7,1796.6,2.75933]
[1746003519535,18.03081487,1796.7,1796.6,2.75933]
[1746003520133,17.60793863,1796.7,1796.6,2.75933]
[1746003520331,18.03081558,1796.7,1796.6,2.75933]
[1746003520739,18.03081558,1796.7,1796.6,8.66133]
[1746003520935,18.03081558,1796.7,1796.6,7.5484]
[1746003521837,18.03081558,1796.7,1796.6,8.66133]
[1746003522041,18.03079271,1796.7,1796.6,8.66133]
[1746003522642,18.03079271,1796.7,1796.6,7.5484]
[1746003525148,18.03079271,1796.7,1796.6,1.6464]
[1746003525444,18.03074997,1796.7,1796.6,1.6464]
[1746003525845,18.03075032,1796.7,1796.6,1.6464]
[1746003527640,17.60793863,1796.7,1796.6,1.6464]
[1746003527852,18.03068193,1796.7,1796.6,1.6464]
[1746003529449,10.60343774,1796.7,1796.6,1.6464]
[1746003529745,10.60342497,1796.7,1796.6,1.6464]
[1746003530850,1.11293,1796.6,1796.5,0.8031]
[1746003531051,3.14232336,1796.6,1796.5,0.8031]
[1746003531345,3.59188497,1796.6,1796.5,0.8031]
[1746003531536,3.59187112,1796.6,1796.5,1.91609]
[1746003531739,3.59187112,1796.6,1796.5,3.58029]
[1746003532647,11.01154525,1796.6,1796.5,3.58029]
[1746003533347,11.01154525,1796.6,1796.5,2.4673]
[1746003534448,11.01154525,1796.6,1796.5,3.58029]
[1746003535046,10.58886574,1796.6,1796.5,3.58029]
[1746003535351,11.0114539,1796.6,1796.5,2.4673]
[1746003535650,11.0114539,1796.6,1796.5,3.58029]
[1746003536750,11.0114539,1796.6,1796.5,2.4673]
[1746003536950,11.011414,1796.6,1796.5,2.4673]
[1746003537152,11.011414,1796.6,1796.5,3.58029]
[1746003538743,14.219214,1796.6,1796.5,9.48229]
[1746003540551,14.219214,1796.6,1796.5,8.3693]
[1746003541053,13.79666574,1796.6,1796.5,8.3693]
[1746003541239,13.34710413,1796.6,1796.5,8.3693]
[1746003541650,14.21918081,1796.6,1796.5,8.3693]
[1746003541952,14.2191838,1796.6,1796.5,8.3693]
[1746003543053,14.2191838,1796.6,1796.5,9.48229]
[1746003543253,14.2191838,1796.6,1796.5,8.3693]
[1746003543751,14.2191838,1796.6,1796.5,9.48229]
[1746003543952,14.21916679,1796.6,1796.5,9.48229]
[1746003544147,12.61246679,1796.6,1796.5,22.26557]
[1746003544749,12.61246679,1796.6,1796.5,9.48229]
[1746003545753,12.6124587,1796.6,1796.5,9.48229]
[1746003547656,12.61247593,1796.6,1796.5,9.48229]
[1746003548548,10.75510655,1796.6,1796.5,9.48229]